fUSD/lending_fUSD_20250905
["ID","MTS","AMOUNT","RATE_DAILY","PERIOD"]
[383676575,1757080299508,-209732.02100726,0.00033864,7]
[383676576,1757080299518,-15211.04892686,0.00033882,2]
[383676577,1757080299527,-600.0,0.000339,30]
[383676578,1757080299538,-328.0,0.000339,9]
[383676579,1757080299547,-3416.09,0.000339,30]
[383676580,1757080299558,-200.0,0.00033941,2]
[383676581,1757080299570,-976.96,0.00034,2]
[383676582,1757080299584,-4500.0,0.00034,11]
[383676583,1757080299593,-50000.0,0.00034,5]
[383676584,1757080299603,-50000.0,0.00034,8]
[383676585,1757080299613,-50000.0,0.00034,9]
[383676586,1757080299623,-300.0,0.00034,120]
[383676587,1757080299632,-288.0,0.00034,30]
[383676588,1757080299643,-3010.69135387,0.00034,10]
[383676589,1757080299653,-1401.94814892,0.0003405,30]
[383676590,1757080299662,-6000.0,0.00034052,120]
[383676591,1757080299672,-320.74051982,0.00034125,2]
[383676592,1757080299682,-5479.16953803,0.00034164,22]
[383676593,1757080299691,-207.54984894,0.00034228,7]
[383676594,1757080299701,-1000.0,0.00034246,120]
[383676595,1757080299711,-1000.0,0.00034273,120]
[383676596,1757080299721,-77022.75,0.000343,14]
[383676597,1757080299731,-175.65507422,0.00034301,120]
[383676598,1757080299742,-494.28,0.00034383,9]
[383676599,1757080299751,-174.58777118,0.00034396,2]
[383676600,1757080299761,-1695.19074253,0.0003449,2]
[383676601,1757080299771,-1100.0,0.000345,14]
[383676602,1757080299781,-50000.0,0.000345,4]
[383676603,1757080299791,-4000.0,0.000345,4]
[383676604,1757080299800,-936.43,0.00034618,2]
[383676605,1757080299812,-174.18,0.0003468,60]
[383676606,1757080299822,-516.0,0.00034689,10]
[383676607,1757080299832,-12131.30286426,0.00034699,30]
[383676608,1757080299842,-164.0,0.0003475,2]
[383676609,1757080299852,-2300.0,0.00034776,7]
[383676610,1757080299861,-800.0,0.00034776,7]
[383676611,1757080299871,-174.18,0.0003478,60]
[383676612,1757080299880,-12526.54,0.000348,14]
[383676613,1757080299890,-1444.0,0.00034849,120]
[383676614,1757080299899,-1224.30998683,0.0003485,60]
[383676615,1757080299909,-181.22075999,0.00034867,15]
[383676616,1757080299919,-174.20441723,0.0003488,60]
[383676617,1757080299928,-300.0,0.000349,10]
[383676618,1757080299938,-15394.13356545,0.000349,2]
[383676619,1757080299947,-1683.21276169,0.000349,90]
[383676620,1757080299957,-200.0,0.00034947,2]
[383676621,1757080299966,-291.09932,0.0003498,2]
[383676622,1757080299975,-1256.07765842,0.00034999,2]
[383676623,1757080299985,-159.32502862,0.00035,30]
[383676624,1757080299995,-184.49235778,0.00035,30]
[383676625,1757080300004,-1212.35453945,0.00035,2]
[383676626,1757080300014,-2747.0,0.00035,30]
[383676627,1757080300023,-3000.0,0.00035,2]
[383676628,1757080300033,-50000.0,0.00035,7]
[383676629,1757080300043,-50000.0,0.00035,6]
[383676630,1757080300052,-1000.0,0.00035,2]
[383676631,1757080300063,-153.42,0.00035,5]
[383676632,1757080300073,-250.0,0.00035,7]
[383676633,1757080300082,-200.0,0.00035,7]
[383676634,1757080300092,-214.78,0.00035,2]
[383676635,1757080300101,-1598.0,0.00035,120]
[383676636,1757080300110,-163.51560319,0.00035,120]
[383676637,1757080300119,-225.0,0.00035,120]
[383676638,1757080300129,-288.0,0.00035,30]
[383676639,1757080300139,-150.0,0.00035,5]
[383676640,1757080300148,-10000.0,0.00035,10]
[383676641,1757080300157,-200.0,0.00035,120]
[383676642,1757080300167,-543.91527831,0.00035,120]
[383676643,1757080300176,-241.13191478,0.00035,30]
[383676644,1757080300185,-1525.30426557,0.00035,2]
[383676645,1757080300195,-180.0,0.00035,30]
[383676646,1757080300205,-160.49911693,0.00035,60]
[383676647,1757080300214,-494.28,0.00035068,11]
[383676648,1757080300224,-1038.36681793,0.00035093,7]
[383676649,1757080300233,-3416.09,0.000351,30]
[383676650,1757080300243,-5479.16953803,0.00035193,24]
[383676651,1757080300253,-177.20423338,0.00035242,30]
[383676652,1757080300264,-150.0,0.00035242,30]
[383676653,1757080300273,-1779.55317634,0.00035242,30]
[383676654,1757080300282,-150.0,0.00035242,30]
[383676655,1757080300291,-478.99432733,0.00035242,30]
[383676656,1757080300301,-200.0,0.0003525,120]
[383676657,1757080300313,-2457.19765584,0.00035319,2]
[383676658,1757080300322,-5000.0,0.000354,2]
[383676659,1757080300332,-871.48886874,0.00035439,2]
[383676660,1757080300341,-332.60791905,0.00035494,2]
[383676661,1757080300351,-8146.83153659,0.00035528,2]
[383676662,1757080300361,-481.96,0.00035578,2]
[383676663,1757080300370,-8000.0,0.00035584,120]
[383676664,1757080300528,-174.52,0.00035691,60]
[383676665,1757080300538,-188.18,0.00035691,60]
[383676666,1757080300547,-150.0,0.00035693,120]
[383676667,1757080300556,-150.0,0.00035732,120]
[383676668,1757080300567,-494.28,0.00035753,13]
[383676669,1757080300577,-150.0,0.00035765,120]
[383676670,1757080300587,-150.0,0.00035811,120]
[383676671,1757080300596,-500.0,0.0003588,120]
[383676672,1757080300605,-1031.75413,0.00035888,30]
[383676673,1757080300614,-693.25196926,0.00035891,2]
[383676674,1757080300624,-150.0,0.00035899,120]
[383676675,1757080300633,-300.0,0.000359,12]
[383676676,1757080300642,-4124.99119,0.00035922,30]
[383676677,1757080300652,-160.0,0.0003594,2]
[383676678,1757080300662,-150.0,0.00035951,120]
[383676679,1757080300672,-200.0,0.00035953,2]
[383676680,1757080300681,-150.0,0.00035984,120]
[383676681,1757080300691,-150.0,0.00035994,120]
[383676682,1757080300700,-4000.0,0.00036,4]
[383676683,1757080300710,-79144.19732882,0.00036,2]
[383676684,1757080300720,-10657.80081808,0.00036,2]
[383676685,1757080300730,-97223.71986225,0.00036,4]
[383676686,1757080300739,-437.04318176,0.00036,30]
[383676687,1757080300749,-701.26943182,0.00036,120]
[383676688,1757080300758,-300.0,0.00036,120]
[383676689,1757080300768,-961.2562767,0.00036,37]
[383676690,1757080300777,-174.51154411,0.00036,120]
[383676691,1757080300787,-1000.70273901,0.00036,120]
[383676692,1757080300796,-288.0,0.00036,30]
[383676693,1757080300805,-224.0,0.00036,2]
[383676694,1757080300817,-174.58777118,0.00036066,2]
[383676695,1757080300827,-1031.75413,0.00036088,30]
[383676696,1757080300837,-5479.16953803,0.00036222,26]
[383676697,1757080300847,-150.0,0.00036258,120]
[383676698,1757080300857,-150.0,0.0003627,120]
[383676699,1757080300867,-150.0,0.00036271,120]
[383676700,1757080300878,-1031.75413,0.00036288,30]
[383676701,1757080300890,-181.22075999,0.00036301,15]
[383676702,1757080300900,-2300.0,0.0003642,7]
[383676703,1757080300911,-800.0,0.0003642,7]
[383676704,1757080300920,-150.0,0.00036422,120]
[383676705,1757080300930,-494.28,0.00036438,15]
[383676706,1757080300939,-423.66984981,0.00036457,2]
[383676707,1757080300949,-176.88013964,0.00036467,2]
[383676708,1757080300959,-176.88013964,0.00036467,2]
[383676709,1757080300968,-176.88013964,0.00036467,2]
[383676710,1757080300978,-176.88013964,0.00036467,2]
[383676711,1757080300987,-176.88013964,0.00036467,2]
[383676712,1757080300996,-176.88013964,0.00036467,2]
[383676713,1757080301006,-176.88013964,0.00036467,2]
[383676714,1757080301015,-176.88013964,0.00036467,2]
[383676715,1757080301025,-176.88013964,0.00036467,2]
[383676716,1757080301035,-176.88013964,0.00036467,2]
[383676717,1757080301043,-176.88013964,0.00036467,2]
[383676718,1757080301053,-176.88013964,0.00036467,2]
[383676719,1757080301065,-176.88013964,0.00036467,2]
[383676720,1757080301074,-176.88013964,0.00036467,2]
[383676721,1757080301084,-176.88013964,0.00036467,2]
[383676722,1757080301093,-176.88013964,0.00036467,2]
[383676723,1757080301103,-176.88013964,0.00036467,2]
[383676724,1757080301113,-176.88013964,0.00036467,2]
[383676725,1757080301123,-176.88013964,0.00036467,2]
[383676726,1757080301133,-176.88013964,0.00036467,2]
[383676727,1757080301143,-176.88013964,0.00036467,2]
[383676728,1757080301152,-176.88013964,0.00036467,2]
[383676729,1757080301161,-176.88013964,0.00036467,2]
[383676730,1757080301172,-176.88013964,0.00036467,2]
[383676731,1757080301183,-176.88013964,0.00036467,2]
[383676732,1757080301192,-176.88013964,0.00036467,2]
[383676733,1757080301202,-176.88013964,0.00036467,2]
[383676734,1757080301212,-176.88013964,0.00036467,2]
[383676735,1757080301221,-176.88013964,0.00036467,2]
[383676736,1757080301230,-176.88013964,0.00036467,2]
[383676737,1757080301240,-176.88013964,0.00036467,2]
[383676738,1757080301250,-1031.75413,0.00036488,30]
[383676739,1757080301259,-150.0,0.00036494,120]
[383676740,1757080301269,-314.54073141,0.000365,30]
[383676741,1757080301279,-60000.0,0.000365,120]
[383676742,1757080301289,-1523.28145936,0.000365,120]
[383676743,1757080301298,-560.70558341,0.000365,7]
[383676744,1757080301308,-12430.81304056,0.000365,2]
[383676745,1757080301318,-319.40400945,0.00036535,16]
[383676746,1757080301328,-150.0,0.00036543,120]
[383676747,1757080301337,-4248.14932773,0.00036647,9]
[383676748,1757080301348,-1031.75413,0.00036688,30]
[383676749,1757080301359,-2512.26,0.000367,7]
[383676750,1757080301369,-2512.46,0.000367,7]
[383676751,1757080301379,-1455.44,0.000367,7]
[383676752,1757080301389,-443.63,0.000367,7]
[383676753,1757080301398,-4406.9,0.000367,7]
[383676754,1757080301407,-824.85,0.000367,7]
[383676755,1757080301417,-2909.62,0.000367,7]
[383676756,1757080301426,-4193.05,0.000367,7]
[383676757,1757080301436,-150.0,0.00036705,120]
[383676758,1757080301447,-150.0,0.00036785,120]
[383676759,1757080301456,-3544.5,0.000368,120]
[383676760,1757080301466,-276.72067077,0.00036822,2]
[383676761,1757080301475,-150.0,0.00036853,120]
[383676762,1757080301484,-344.91441206,0.00036863,2]
[383676763,1757080301495,-150.0,0.00036879,120]
[383676764,1757080301507,-1031.75413,0.00036888,30]
[383676765,1757080301516,-3439.1804,0.00036888,7]
[383676766,1757080301527,-150.0,0.00036892,120]
[383676767,1757080301538,-300.0,0.000369,14]
[383676768,1757080301548,-49992.48380006,0.000369,30]
[383676769,1757080301557,-460.46631248,0.000369,30]
[383676770,1757080301567,-13854.81507785,0.0003691,2]
[383676771,1757080301576,-2578.08584176,0.0003692,10]
[383676772,1757080301587,-150.0,0.00036926,120]
[383676773,1757080301597,-200.0,0.00036959,2]
[383676774,1757080301606,-439.07331128,0.00036986,60]
[383676775,1757080301615,-500.0,0.00036986,120]
[383676776,1757080301624,-500.0,0.00036986,120]
[383676777,1757080301633,-500.0,0.00036986,120]
[383676778,1757080301642,-500.0,0.00036986,120]
[383676779,1757080301652,-162.3978008,0.00037,2]
[383676780,1757080301661,-11223.48778598,0.00037,30]
[383676781,1757080301671,-1006.79911399,0.00037,3]
[383676782,1757080301680,-24096.0,0.00037,30]
[383676783,1757080301690,-155.14252279,0.00037,30]
[383676784,1757080301700,-900.0,0.00037,38]
[383676785,1757080301709,-644.80997224,0.00037,10]
[383676786,1757080301718,-2000.0,0.00037,2]
[383676787,1757080301727,-2000.0,0.00037,2]
[383676788,1757080301737,-2000.0,0.00037,2]
[383676789,1757080301746,-2000.0,0.00037,2]
[383676790,1757080301755,-2000.0,0.00037,2]
[383676791,1757080301764,-212.25648547,0.00037,30]
[383676792,1757080301774,-54648.2867791,0.00037,30]
[383676793,1757080301783,-1017.0,0.00037,120]
[383676794,1757080301792,-1254.5587848,0.00037,2]
[383676795,1757080301802,-547.0166007,0.00037,120]
[383676796,1757080301813,-1598.0,0.00037,120]
[383676797,1757080301823,-36554.69740591,0.00037,3]
[383676798,1757080301832,-153.03665068,0.00037,120]
[383676799,1757080301841,-17000.0,0.00037,120]
[383676800,1757080301851,-176.2677734,0.00037,5]
[383676801,1757080301860,-2000.0,0.00037,2]
[383676802,1757080301869,-288.0,0.00037,30]
[383676803,1757080301879,-223.0,0.00037,30]
[383676804,1757080301888,-150.0,0.00037033,120]
[383676805,1757080301898,-150.0,0.00037042,120]
[383676806,1757080301907,-1031.75413,0.00037088,30]
[383676807,1757080301917,-156.0,0.0003712,2]
[383676808,1757080301926,-494.28,0.00037123,17]
[383676809,1757080301936,-80000.0,0.00037185,87]
[383676810,1757080301945,-70000.0,0.0003719,86]
[383676811,1757080301954,-440.11408446,0.000372,30]
[383676812,1757080301964,-286.11434838,0.000372,120]
[383676813,1757080301973,-286.11434836,0.000372,120]
[383676814,1757080301983,-286.11434836,0.000372,120]
[383676815,1757080301992,-286.11434836,0.000372,120]
[383676816,1757080302002,-286.11434836,0.000372,120]
[383676817,1757080302011,-516.0,0.00037206,13]
[383676818,1757080302020,-47560.71386404,0.0003724,5]
[383676819,1757080302030,-5479.16953803,0.00037251,28]
[383676820,1757080302039,-60000.0,0.0003728,86]
[383676821,1757080302048,-1031.75413,0.00037288,30]
[383676822,1757080302057,-28906.611195,0.00037295,5]
[383676823,1757080302068,-150.0,0.00037307,120]
[383676824,1757080302077,-150.0,0.00037335,120]
[383676825,1757080302086,-150.0,0.00037366,120]
[383676826,1757080302095,-400.0,0.0003737,2]
[383676827,1757080302105,-301.7725916,0.0003737,2]
[383676828,1757080302114,-150.0,0.00037373,120]
[383676829,1757080302123,-50000.0,0.0003738,84]
[383676830,1757080302133,-399.3032276,0.0003739,14]
[383676831,1757080302142,-150.0,0.00037399,120]
[383676832,1757080302151,-280.0,0.000374,30]
[383676833,1757080302160,-150.0,0.00037472,120]
[383676834,1757080302169,-150.0,0.00037474,120]
[383676835,1757080302179,-150.0,0.00037483,120]
[383676836,1757080302187,-1031.75413,0.00037488,30]
[383676837,1757080302197,-2760.09951498,0.00037498,31]
[383676838,1757080302207,-165.57280891,0.000375,120]
[383676839,1757080302215,-8242.98582695,0.000375,120]
[383676840,1757080302224,-228.0,0.000375,120]
[383676841,1757080302234,-4000.0,0.000375,4]
[383676842,1757080302243,-90000.0,0.0003752,84]
[383676843,1757080302252,-90000.0,0.00037528,88]
[383676844,1757080302261,-871.48886874,0.00037547,2]
[383676845,1757080302270,-4253.76088543,0.0003759,2]
[383676846,1757080302279,-3875.75331611,0.00037598,5]
[383676847,1757080302288,-45628.2,0.000376,30]
[383676848,1757080302298,-250.0,0.000376,14]
[383676849,1757080302307,-250.0,0.000376,14]
[383676850,1757080302318,-250.0,0.000376,14]
[383676851,1757080302328,-250.0,0.000376,14]
[383676852,1757080302337,-250.0,0.000376,14]
[383676853,1757080302347,-250.0,0.000376,14]
[383676854,1757080302356,-250.0,0.000376,14]
[383676855,1757080302365,-289.9,0.000376,14]
[383676856,1757080302375,-300.0,0.00037643,85]
[383676857,1757080302384,-200.0,0.00037647,120]
[383676858,1757080302394,-174.52,0.00037647,60]
[383676859,1757080302404,-188.18,0.00037647,60]
[383676860,1757080302413,-204911.62205272,0.0003765,7]
[383676861,1757080302422,-1000.0,0.00037666,30]
[383676862,1757080302431,-1031.75413,0.00037688,30]
[383676863,1757080302440,-150.0,0.00037699,120]
[383676864,1757080302450,-1972.3403146,0.00037735,2]
[383676865,1757080302459,-693.25196926,0.00037735,2]
[383676866,1757080302468,-174.58777118,0.00037735,2]
[383676867,1757080302478,-181.22075999,0.00037735,15]
[383676868,1757080302487,-2457.19765584,0.00037735,2]
[383676869,1757080302496,-150.0,0.00037745,120]
[383676870,1757080302507,-1792.03767774,0.0003777,30]
[383676871,1757080302517,-500.0,0.0003777,15]
[383676872,1757080302526,-494.28,0.00037808,19]
[383676873,1757080302538,-3349.38728125,0.00037827,7]
[383676874,1757080302547,-112448.34087486,0.0003783,2]
[383676875,1757080302556,-15101.35499065,0.00037835,2]
[383676876,1757080302567,-231.61849769,0.00037835,2]
[383676877,1757080302575,-175.77949695,0.00037835,2]
[383676878,1757080302585,-6000.0,0.00037835,2]
[383676879,1757080302594,-379.75752972,0.00037835,2]
[383676880,1757080302603,-1486.86777766,0.00037835,2]
[383676881,1757080302613,-1045.45013092,0.00037835,2]
[383676882,1757080302622,-1190.78100109,0.00037835,2]
[383676883,1757080302632,-3089.77090775,0.00037835,2]
[383676884,1757080302642,-569.71226757,0.00037835,2]
[383676885,1757080302651,-3361.08235418,0.00037835,2]
[383676886,1757080302660,-150.0,0.00037835,2]
[383676887,1757080302670,-7854.97067581,0.00037835,2]
[383676888,1757080302679,-633.61121028,0.00037835,2]
[383676889,1757080302688,-217.21585323,0.00037835,2]
[383676890,1757080302698,-166109.73223576,0.00037835,2]
[383676891,1757080302707,-1079.08694059,0.00037835,2]
[383676892,1757080302716,-2500.0,0.00037835,2]
[383676893,1757080302726,-585.8123737,0.00037835,2]
[383676894,1757080302735,-346.06912021,0.00037835,2]
[383676895,1757080302744,-238409.39459699,0.00037835,7]
[383676896,1757080302753,-1100.0,0.00037835,2]
[383676897,1757080302763,-5086.8357009,0.00037835,2]
[383676898,1757080302772,-922.35984513,0.00037835,2]
[383676899,1757080302781,-27269.71276104,0.00037835,2]
[383676900,1757080302791,-15755.71811553,0.00037835,2]
[383676901,1757080302800,-486.97801993,0.00037835,2]
[383676902,1757080302809,-1605.11232258,0.00037835,2]
[383676903,1757080302820,-21034.23638582,0.00037835,2]
[383676904,1757080302830,-554.45817085,0.00037835,2]
[383676905,1757080302839,-5060.75330579,0.00037835,2]
[383676906,1757080302848,-300.02026727,0.00037835,7]
[383676907,1757080302858,-1023.1215824,0.00037835,2]
[383676908,1757080302867,-368.90742557,0.00037835,2]
[383676909,1757080302876,-2228.166628,0.00037835,2]
[383676910,1757080302885,-14955.8937268,0.00037835,2]
[383676911,1757080302895,-23304.11953471,0.00037835,2]
[383676912,1757080302905,-1857.32041621,0.00037835,2]
[383676913,1757080302915,-6871.01875417,0.00037835,4]
[383676914,1757080302925,-1130.75470985,0.00037835,2]
[383676915,1757080302934,-5270.95616627,0.00037835,4]
[383676916,1757080302943,-407.28067419,0.00037835,2]
[383676917,1757080302953,-20501.42151114,0.00037835,2]
[383676918,1757080302963,-1724.93306163,0.00037835,2]
[383676919,1757080302973,-205.25136546,0.00037835,2]
[383676920,1757080302983,-873.56633299,0.00037835,2]
[383676921,1757080302992,-286.14781608,0.00037835,2]
[383676922,1757080303002,-3080.94826415,0.00037835,2]
[383676923,1757080303011,-5753.35787455,0.00037835,2]
[383676924,1757080303020,-1125.52116242,0.00037835,2]
[383676925,1757080303030,-4633.29618037,0.00037835,2]
[383676926,1757080303040,-2198.32174327,0.00037835,2]
[383676927,1757080303049,-1047.27268846,0.00037835,2]
[383676928,1757080303058,-886.40176262,0.00037835,2]
[383676929,1757080303069,-465.89390546,0.00037835,2]
[383676930,1757080303078,-150.0,0.00037835,2]
[383676931,1757080303087,-160.0,0.00037835,2]
[383676932,1757080303097,-12763.56272436,0.00037835,2]
[383676933,1757080303106,-159.79364127,0.00037835,2]
[383676934,1757080303115,-201.76206343,0.00037835,2]
[383676935,1757080303124,-751.16627519,0.00037835,2]
[383676936,1757080303134,-165.22101515,0.00037835,2]
[383676937,1757080303143,-4266.0,0.00037835,2]
[383676938,1757080303152,-280.33979054,0.00037835,2]
[383676939,1757080303162,-320.86732159,0.00037835,2]
[383676940,1757080303171,-880606.45,0.00037835,7]
[383676941,1757080303180,-493.85086915,0.00037835,3]
[383676942,1757080303189,-238.7464855,0.00037835,3]
[383676943,1757080303198,-9440.76289932,0.00037835,2]
[383676944,1757080303209,-981.8301278,0.00037835,2]
[383676945,1757080303218,-1593.23776857,0.00037835,2]
[383676946,1757080303230,-579.80855009,0.00037835,2]
[383676947,1757080303240,-1857.0439214,0.00037835,2]
[383676948,1757080303249,-663162.14541014,0.00037835,2]
[383676949,1757080303260,-164.7,0.00037835,2]
[383676950,1757080303270,-10908.88421674,0.00037835,15]
[383676951,1757080303280,-395.48466642,0.00037835,2]
[383676952,1757080303291,-571.52918207,0.00037835,5]
[383676953,1757080303300,-204179.73619521,0.00037835,2]
[383676954,1757080303309,-123411.04531761,0.00037835,2]
[383676955,1757080303320,-1210.0,0.00037835,2]
[383676956,1757080303330,-10753.07539736,0.00037835,3]
[383676957,1757080303340,-711.561931,0.00037835,2]
[383676958,1757080303349,-10406.20629544,0.00037835,5]
[383676959,1757080303359,-366.40456949,0.00037835,2]
[383676960,1757080303369,-2015.95004858,0.00037835,5]
[383676961,1757080303379,-352.40403839,0.00037835,2]
[383676962,1757080303389,-630.18208262,0.00037835,6]
[383676963,1757080303399,-5556.95182482,0.00037835,20]
[383676964,1757080303410,-991.39383549,0.00037835,20]
[383676965,1757080303419,-6687.83177207,0.00037835,2]
[383676966,1757080303429,-1538.26759903,0.00037835,2]
[383676967,1757080303439,-1041.77390638,0.00037835,2]
[383676968,1757080303448,-5244.28623427,0.00037835,2]
[383676969,1757080303458,-350.64234279,0.00037835,2]
[383676970,1757080303468,-2482.80477544,0.00037835,2]
[383676971,1757080303477,-2735.01478379,0.00037835,2]
[383676972,1757080303488,-218771.53060367,0.00037835,2]
[383676973,1757080303497,-153.07914318,0.00037835,2]
[383676974,1757080303510,-1697.05436281,0.00037835,2]
[383676975,1757080303519,-991.94825756,0.00037835,5]
[383676976,1757080303529,-252.05748984,0.00037835,2]
[383676977,1757080303541,-166.34996245,0.00037835,2]
[383676978,1757080303551,-1001.87585798,0.00037835,2]
[383676979,1757080303560,-1276.10730451,0.00037835,2]
[383676980,1757080303571,-246.19742879,0.00037835,2]
[383676981,1757080303583,-7805.88743795,0.00037835,2]
[383676982,1757080303594,-163.64168804,0.00037835,2]
[383676983,1757080303604,-1053.76971049,0.00037835,2]
[383676984,1757080303613,-600.0,0.00037835,5]
[383676985,1757080303624,-551.65286519,0.00037835,2]
[383676986,1757080303634,-9337.64213484,0.00037835,2]
[383676987,1757080303644,-1326.573696,0.00037835,2]
[383676988,1757080303654,-3458.11401057,0.00037835,2]
[383676989,1757080303663,-8125.77952099,0.00037835,2]
[383676990,1757080303674,-2221.11632759,0.00037835,2]
[383676991,1757080303684,-23064.65668869,0.00037835,2]
[383676992,1757080303694,-756.34773327,0.00037835,2]
[383676993,1757080303703,-12974.94726278,0.00037835,2]
[383676994,1757080303714,-1942.09273751,0.00037835,2]
[383676995,1757080303725,-186.21353543,0.00037835,2]
[383676996,1757080303736,-5076.23166915,0.00037835,2]
[383676997,1757080303746,-15060.95998821,0.00037835,3]
[383676998,1757080303756,-643.0,0.00037835,2]
[383676999,1757080303767,-100142.81152007,0.00037835,2]
[383677000,1757080303778,-4794.04600061,0.00037835,4]
[383677001,1757080303788,-19258.4974265,0.00037835,5]
[383677002,1757080303797,-336837.85458986,0.00037835,2]
[383677003,1757080303807,-3277.00015416,0.00037835,2]
[383677004,1757080303820,-177.34261339,0.00037835,2]
[383677005,1757080303830,-185.52043369,0.00037835,2]
[383677006,1757080303839,-190.80143914,0.00037835,2]
[383677007,1757080303849,-550.0,0.00037835,2]
[383677008,1757080303859,-1482.98567306,0.00037835,2]
[383677009,1757080303868,-10000.0,0.00037835,2]
[383677010,1757080303878,-1019.84653005,0.00037835,2]
[383677011,1757080303888,-10816.80315913,0.00037835,2]
[383677012,1757080303897,-171744.43380058,0.00037835,2]
[383677013,1757080303908,-999.999999,0.00037835,2]
[383677014,1757080303917,-222.19064924,0.00037835,5]
[383677015,1757080303927,-172.38093192,0.00037835,2]
[383677016,1757080303937,-1097.7803419,0.00037835,5]
[383677017,1757080303947,-25124.03211455,0.00037835,5]
[383677018,1757080303957,-622.31640129,0.00037835,5]
[383677019,1757080303966,-370.4308072,0.00037835,7]
[383677020,1757080303976,-180.39957755,0.00037835,2]
[383677021,1757080303985,-446759.87733006,0.00037835,2]
[383677022,1757080303995,-299.999999,0.00037835,2]
[383677023,1757080304005,-1499.999999,0.00037835,2]
[383677024,1757080304015,-341.927791,0.00037835,10]
[383677025,1757080304025,-500.82649509,0.00037835,7]
[383677026,1757080304035,-541.3285737,0.00037835,7]
[383677027,1757080304044,-1054.84039848,0.00037835,7]
[383677028,1757080304053,-472.91329221,0.00037835,7]
[383677029,1757080304063,-221.60199134,0.00037835,7]
[383677030,1757080304075,-448.62108561,0.00037835,7]
[383677031,1757080304085,-237.14541535,0.00037835,7]
[383677032,1757080304094,-1030.54809958,0.00037835,7]
[383677033,1757080304103,-690.93731964,0.00037835,15]
[383677034,1757080304113,-153190.06120843,0.00037835,7]
[383677035,1757080304123,-4112.7473533,0.00037835,2]
[383677036,1757080304132,-915.5,0.00037835,30]
[383677037,1757080304142,-179.0,0.00037835,60]
[383677038,1757080304151,-176.0,0.00037835,60]
[383677039,1757080304161,-196.0,0.00037835,60]
[383677040,1757080304171,-1000.0,0.00037835,30]
[383677041,1757080304182,-659.23155975,0.00037835,60]
[383677042,1757080304192,-562.29116795,0.00037835,120]
[383677043,1757080304203,-500.0,0.00037835,120]
[383677044,1757080304213,-500.0,0.00037835,120]
[383677045,1757080304223,-500.0,0.00037835,120]
[383677046,1757080304233,-500.0,0.00037835,120]
[383677047,1757080304243,-500.0,0.00037835,120]
[383677048,1757080304253,-271.70885412,0.00037835,120]
[383677049,1757080304263,-150.0,0.00037835,30]
[383677050,1757080304273,-212.7,0.00037835,30]
[383677051,1757080304283,-544.82054372,0.00037835,120]
[383677052,1757080304293,-2229.54145977,0.00037835,91]
[383677053,1757080304303,-520.66297635,0.00037835,30]
[383677054,1757080304314,-331.67344065,0.00037835,120]
[383677055,1757080304327,-415.83047884,0.00037835,120]
[383677056,1757080304337,-217.09150389,0.00037835,120]
[383677057,1757080304347,-623.78072651,0.00037835,30]
[383677058,1757080304357,-350.31750093,0.00037835,30]
[383677059,1757080304367,-238.46656368,0.00037835,120]
[383677060,1757080304378,-806.04963125,0.00037835,30]
[383677061,1757080304388,-167.95003323,0.00037835,30]
[383677062,1757080304398,-192.61238827,0.00037835,30]
[383677063,1757080304409,-199.38308718,0.00037835,90]
[383677064,1757080304419,-344.93793752,0.00037835,30]
[383677065,1757080304429,-346.07708644,0.00037835,120]
[383677066,1757080304594,-211.42444183,0.00037835,120]
[383677067,1757080304624,-956.58007723,0.00037835,30]
[383677068,1757080304635,-620.0,0.00037835,30]
[383677069,1757080304646,-179.28549044,0.00037835,120]
[383677070,1757080304656,-177.16939009,0.00037835,30]
[383677071,1757080304666,-271.18085787,0.00037835,120]
[383677072,1757080304676,-231.65033334,0.00037835,120]
[383677073,1757080304686,-574.94452094,0.00037835,120]
[383677074,1757080304696,-577.2275307,0.00037835,120]